bitfinex/quotes_SOLUSD_20240624
["timestamp","ask_amount","ask_price","bid_price","bid_amount"]
[1719238060763,0.77095059,129.72,129.67,100.0]
[1719238061090,0.77095059,129.72,129.67,126.9908]
[1719238061286,0.77095059,129.72,129.67,100.0]
[1719238061668,0.77095059,129.72,129.67,107.7118]
[1719238062297,0.77095059,129.72,129.67,100.0]
[1719238062466,0.77095059,129.72,129.67,107.7117]
[1719238062868,0.77095059,129.72,129.68,7.7111]
[1719238063081,0.77095059,129.72,129.7,100.0]
[1719238063885,0.77095059,129.72,129.71,1.53910985]
[1719238064069,0.77095059,129.72,129.7,100.0]
[1719238064481,0.77095059,129.72,129.68,126.9893]
[1719238064797,0.77095059,129.72,129.68,100.0]
[1719238065196,0.77095059,129.72,129.71,7.7095]
[1719238065397,0.67430354,129.79,129.77,7.7057]
[1719238065577,0.67430354,129.79,129.78,107.7053]
[1719238068181,0.67430354,129.79,129.75,100.0]
[1719238068380,0.67430354,129.79,129.76,7.7062]
[1719238069397,0.67430354,129.79,129.75,100.0]
[1719238069609,0.67430354,129.79,129.74,26.9758]
[1719238070199,0.67430354,129.79,129.75,107.707]
[1719238070771,0.67430354,129.79,129.73,100.0]
[1719238070990,0.17,129.78,129.73,100.0]
[1719238071195,0.67430354,129.79,129.73,100.0]
[1719238072204,0.67430354,129.79,129.75,100.0]
[1719238072376,0.67430354,129.79,129.75,119.2672]
[1719238072683,0.67430354,129.79,129.73,100.0]
[1719238073397,91.06555341,129.86,129.75,10.0]
[1719238073576,45.17,129.85,129.75,10.0]
[1719238075196,7.705,129.79,129.73,10.0]
[1719238075388,7.8754,129.78,129.69,110.0]
[1719238075592,0.17,129.78,129.71,100.0]
[1719238075784,0.17,129.78,129.71,110.0]
[1719238076093,0.17,129.79,129.71,117.7094]
[1719238076287,30.04,129.82,129.71,117.7094]
[1719238076288,0.17,129.8,129.72,19.2719]
[1719238076485,22.1521,129.8,129.71,117.7093]
[1719238076686,0.17,129.79,129.72,7.7088]
[1719238077012,0.17,129.79,129.71,136.9828]
[1719238077303,0.17,129.79,129.74,10.0]
[1719238077496,22.1521,129.8,129.74,10.0]
[1719238077700,22.1521,129.8,129.72,110.0]
[1719238077886,22.1521,129.8,129.72,10.0]
[1719238078306,29.8562,129.8,129.72,10.0]
[1719238078508,7.7047,129.79,129.72,10.0]
[1719238078804,22.1521,129.8,129.74,10.0]
[1719238078987,0.17,129.79,129.72,10.0]
[1719238079188,0.17,129.79,129.68,10.0]
[1719238079404,7.7076,129.75,129.68,10.0]
[1719238079582,0.17,129.74,129.68,10.0]
[1719238080176,0.17,129.74,129.66,107.712]
[1719238080391,0.77124788,129.67,129.66,117.712]
[1719238080802,0.77124788,129.67,129.66,110.0]
[1719238080985,0.77124788,129.67,129.66,117.7124]
[1719238083014,22.1521,129.8,129.71,110.0]
[1719238083185,22.1521,129.8,129.73,100.0]
[1719238084907,22.1521,129.8,129.73,10.0]
[1719238085578,22.1521,129.8,129.75,10.0]
[1719238085784,22.1521,129.8,129.71,136.9825]
[1719238086017,29.8563,129.8,129.71,129.2733]
[1719238086310,52.8747,129.79,129.71,10.0]
[1719238086680,45.17,129.79,129.71,10.0]
[1719238086908,26.6226,129.78,129.65,10.0]
[1719238087112,7.7088,129.73,129.63,17.714]
[1719238087293,30.04,129.75,129.63,17.714]
[1719238087294,49.308,129.75,129.63,110.0]
[1719238087609,0.17,129.72,129.63,10.0]
[1719238087914,6.2465,129.69,129.63,10.0]
[1719238088090,6.2465,129.69,129.63,17.7141]
[1719238088290,6.2465,129.69,129.56,100.0]
[1719238088291,45.0,129.68,129.56,100.0]
[1719238088511,7.7122,129.67,129.56,117.7178]
[1719238088716,45.0,129.68,129.56,10.0]
[1719238088717,52.8824,129.66,129.56,10.0]
[1719238089098,7.7132,129.65,129.56,10.0]
[1719238089405,0.17,129.64,129.56,10.0]
[1719238089813,0.17,129.64,129.58,10.0]
[1719238089992,0.17,129.65,129.58,10.0]
[1719238091226,12.43559346,129.69,129.58,10.0]
[1719238091415,7.7123,129.67,129.58,10.0]
[1719238091712,7.7125,129.66,129.58,10.0]
[1719238091896,12.43559346,129.69,129.58,10.0]
[1719238092299,0.17,129.68,129.58,10.0]
[1719238092502,7.7122,129.67,129.58,10.0]
[1719238092692,0.17,129.66,129.58,10.0]
[1719238092901,7.7125,129.66,129.58,10.0]
[1719238093227,0.17,129.65,129.58,10.0]
[1719238093714,0.17,129.65,129.56,10.0]
[1719238094018,7.7162,129.6,129.51,110.0]
[1719238094199,52.5622,129.64,129.51,10.0]
[1719238094200,0.17,129.59,129.51,10.0]
[1719238094404,7.7175,129.58,129.47,119.3086]
[1719238094614,0.17,129.57,129.48,7.723]
[1719238094807,0.17,129.57,129.49,7.7224]
[1719238095118,0.17,129.57,129.5,107.7219]
[1719238095301,0.17,129.58,129.5,107.7219]
[1719238095502,0.17,129.58,129.51,10.0]
[1719238095721,0.17,129.58,129.48,100.0]
[1719238095905,6.3271,129.56,129.48,100.0]
[1719238096111,6.3271,129.56,129.49,7.7223]
[1719238096311,0.17,129.55,129.49,7.7223]
[1719238096503,0.17,129.55,129.5,7.7219]
[1719238096706,6.3271,129.56,129.5,107.7219]
[1719238096917,6.3271,129.56,129.51,7.7214]
[1719238097127,6.3271,129.56,129.51,17.7214]
[1719238097299,6.3271,129.56,129.49,27.0282]
[1719238097500,6.3271,129.56,129.5,10.0]
[1719238097710,6.3271,129.56,129.49,27.0283]
[1719238098021,28.01742701,129.63,129.54,10.0]
[1719238098022,6.6626,129.6,129.54,10.0]
[1719238098224,6.6626,129.6,129.52,10.0]
[1719238099099,6.6626,129.6,129.54,10.0]
[1719238099742,6.6626,129.6,129.52,10.0]
[1719238100032,14.3786,129.6,129.5,17.7218]
[1719238100419,0.77220078,129.51,129.5,17.7218]
[1719238100801,0.77220078,129.51,129.48,10.0]
[1719238103626,0.77220078,129.51,129.5,17.722]
[1719238104308,0.77220078,129.51,129.5,62.722]
[1719238105104,0.77220078,129.51,129.5,17.722]
[1719238106436,0.77220078,129.51,129.5,62.722]
[1719238106806,0.77220078,129.51,129.5,10.0]
[1719238107139,0.77220078,129.51,129.49,100.0]
[1719238107303,0.77220078,129.51,129.5,7.722]
[1719238107639,0.77220078,129.51,129.5,17.722]
[1719238107837,0.77220078,129.51,129.5,117.722]
[1719238108006,0.77220078,129.51,129.5,123.9597]
[1719238108212,0.77220078,129.51,129.5,168.9597]
[1719238108908,0.77220078,129.51,129.5,68.9597]
[1719238109227,0.77220078,129.51,129.5,10.0]
[1719238109431,0.77220078,129.51,129.5,17.722]
[1719238110212,0.77220078,129.51,129.5,10.0]
[1719238110713,0.77220078,129.51,129.5,17.722]
[1719238110913,0.77220078,129.51,129.5,10.0]
[1719238111525,0.77220078,129.51,129.5,7.722]
[1719238111725,0.77220078,129.51,129.49,100.0]
[1719238112034,0.77220078,129.51,129.49,107.7225]
[1719238112233,0.77220078,129.51,129.5,10.0]
[1719238112424,0.77220078,129.51,129.5,17.722]
[1719238113034,0.77220078,129.51,129.5,62.722]
[1719238113330,6.3349,129.64,129.57,110.0]
[1719238113510,6.3349,129.64,129.57,129.294]
[1719238113715,6.3349,129.64,129.6,10.0]
[1719238114016,6.3349,129.64,129.57,127.0113]
[1719238114017,6.3349,129.64,129.56,10.0]
[1719238114436,6.3349,129.64,129.58,10.0]
[1719238115741,0.17,129.63,129.58,10.0]
[1719238115921,6.3349,129.64,129.58,10.0]
[1719238116113,6.3349,129.64,129.58,110.0]
[1719238116315,6.3349,129.64,129.58,117.7168]
[1719238116512,6.3349,129.64,129.6,10.0]
[1719238118246,6.4368,129.67,129.62,10.0]
[1719238118447,15.9413,129.69,129.64,10.0]
[1719238118747,6.4368,129.7,129.66,10.0]
[1719238118951,22.6177,129.73,129.66,10.0]
[1719238119117,38.2282,129.73,129.68,10.0]
[1719238119618,22.6177,129.73,129.68,10.0]
[1719238120445,0.77112894,129.69,129.68,17.7112]
[1719238120614,0.77112894,129.69,129.68,62.7112]
[1719238121615,0.77112894,129.69,129.68,17.7112]
[1719238121834,0.77112894,129.69,129.68,10.0]
[1719238125410,0.77112894,129.69,129.68,117.7112]
[1719238125838,0.77112894,129.69,129.68,162.8812]
[1719238126028,0.77112894,129.69,129.68,163.0512]
[1719238126334,0.77112894,129.69,129.68,162.7112]
[1719238127124,0.77112894,129.69,129.68,163.0512]
[1719238127326,0.77112894,129.69,129.68,162.8812]
[1719238127539,0.77112894,129.69,129.68,162.7112]
[1719238127724,6.036,129.8,129.74,110.0]
[1719238127927,6.1491,129.83,129.75,7.7067]
[1719238128142,6.1491,129.83,129.74,129.2687]
[1719238128341,6.1491,129.83,129.74,136.9759]
[1719238128718,13.8515,129.83,129.74,129.2687]
[1719238129029,6.1491,129.83,129.76,110.0]
[1719238129343,6.1491,129.83,129.78,10.0]
[1719238129545,15.2124,129.85,129.78,117.7049]
[1719238129720,15.2124,129.85,129.78,117.7051]
[1719238129921,15.2124,129.85,129.8,100.0]
[1719238130127,30.4088,129.87,129.78,29.2629]
[1719238130128,30.4088,129.87,129.78,129.2629]
[1719238130367,30.4088,129.87,129.78,136.968]
[1719238130539,30.4088,129.87,129.78,10.0]
[1719238130739,7.7016,129.85,129.78,10.0]
[1719238131036,30.4088,129.87,129.78,10.0]
[1719238131037,7.7023,129.84,129.78,10.0]
[1719238131339,7.7024,129.83,129.78,10.0]
[1719238131932,0.17,129.82,129.73,10.0]
[1719238132335,23.389,129.81,129.73,10.0]
[1719238132538,0.17,129.8,129.73,10.0]
[1719238132960,7.7048,129.79,129.73,10.0]
[1719238133174,0.17,129.78,129.73,10.0]
[1719238133334,0.17,129.8,129.73,10.0]
[1719238133663,6.096,129.79,129.73,10.0]
[1719238133845,45.17,129.78,129.73,10.0]
[1719238135552,52.8757,129.78,129.73,10.0]
[1719238135733,45.17,129.78,129.7,10.0]
[1719238135941,7.706,129.77,129.7,10.0]
[1719238136160,45.17,129.78,129.7,10.0]
[1719238136161,45.17,129.76,129.7,10.0]
[1719238136372,0.17,129.75,129.67,10.0]
[1719238136542,7.707,129.76,129.67,10.0]
[1719238136862,0.17,129.75,129.67,10.0]
[1719238137069,0.17,129.75,129.69,7.7105]
[1719238137239,0.17,129.75,129.68,126.9888]
[1719238137941,0.17,129.75,129.68,126.9886]
[1719238139267,0.17,129.75,129.68,107.7111]
[1719238139649,0.17,129.75,129.69,10.0]
[1719238140147,7.8771,129.75,129.67,10.0]
[1719238140346,0.77118841,129.68,129.67,10.0]
[1719238140551,0.77118841,129.68,129.67,17.7118]
[1719238141441,0.77118841,129.68,129.67,10.0]
[1719238141638,0.77118841,129.68,129.67,17.7118]
[1719238142046,0.77118841,129.68,129.67,10.0]
[1719238143172,0.77118841,129.68,129.65,10.0]
[1719238144151,0.77118841,129.68,129.65,17.7129]
[1719238144346,0.77118841,129.68,129.67,117.7118]
[1719238144763,15.3937,129.78,129.72,10.0]
[1719238145074,15.3937,129.78,129.72,7.7088]
[1719238145375,15.3937,129.78,129.7,10.0]
[1719238145577,15.3937,129.78,129.71,100.0]
[1719238146465,15.3937,129.78,129.72,10.0]
[1719238146656,15.3937,129.78,129.74,7.7074]
[1719238146861,6.096,129.79,129.73,100.0]
[1719238147252,6.5224,129.83,129.77,17.7059]
[1719238147460,24.56447645,129.86,129.77,110.0]
[1719238147678,16.5308,129.86,129.77,129.2645]
[1719238147884,16.5308,129.86,129.78,7.7048]
[1719238148256,16.5308,129.86,129.79,10.0]
[1719238148566,16.5308,129.86,129.79,110.0]
[1719238148956,16.5308,129.86,129.81,110.0]
[1719238149154,6.6357,129.87,129.79,129.2612]
[1719238149376,6.6357,129.87,129.81,7.7035]
[1719238149667,15.3771,129.9,129.81,7.7035]
[1719238150183,15.3771,129.9,129.79,29.2612]
[1719238150371,15.3771,129.9,129.79,129.2612]
[1719238150884,23.0755,129.9,129.82,10.0]
[1719238151057,15.3771,129.9,129.82,10.0]
[1719238151258,23.0753,129.9,129.82,10.0]
[1719238152475,0.17,129.89,129.82,10.0]
[1719238152682,0.17,129.89,129.83,100.0]
[1719238153205,0.17,129.89,129.82,10.0]
[1719238153375,52.8688,129.89,129.82,10.0]
[1719238153575,45.17,129.89,129.82,10.0]
[1719238153765,7.7001,129.87,129.78,10.0]
[1719238153967,0.17,129.86,129.79,100.0]
[1719238154165,45.17,129.89,129.8,7.7039]
[1719238154399,15.3771,129.9,129.81,117.7034]
[1719238154580,15.3771,129.9,129.81,126.9619]
[1719238154990,15.3771,129.9,129.83,10.0]
[1719238155187,35.51495036,129.91,129.85,10.0]
[1719238155188,27.81735036,129.91,129.85,10.0]
[1719238155493,20.13825036,129.91,129.85,10.0]
[1719238156290,12.44025036,129.91,129.81,10.0]
[1719238156680,52.8684,129.9,129.83,10.0]
[1719238156884,7.8684,129.9,129.8,7.7037]
[1719238157093,7.8684,129.9,129.82,10.0]
[1719238157390,7.8682,129.9,129.8,36.9641]
[1719238157798,0.17,129.9,129.8,10.0]
[1719238158000,16.5209,129.89,129.79,100.0]
[1719238158299,45.17,129.88,129.79,100.0]
[1719238158486,52.8696,129.88,129.79,100.0]
[1719238158682,52.8696,129.88,129.8,10.0]
[1719238158893,7.7001,129.87,129.8,10.0]
[1719238159103,0.17,129.86,129.8,10.0]
[1719238159386,0.17,129.86,129.78,13.8907]
[1719238159387,7.7006,129.86,129.78,16.1856]
[1719238159574,0.17,129.85,129.78,10.0]
[1719238159778,7.7012,129.85,129.78,10.0]
[1719238160076,7.7019,129.84,129.78,10.0]
[1719238160378,53.20585053,129.88,129.78,10.0]
[1719238160379,0.77053476,129.79,129.78,10.0]
[1719238161086,0.77053476,129.79,129.78,110.0]
[1719238162304,0.77053476,129.79,129.78,117.7053]
[1719238163897,0.77053476,129.79,129.78,217.7053]
[1719238164300,12.44025036,129.91,129.82,100.0]
[1719238164509,6.1518,129.91,129.83,7.7021]
[1719238164819,13.8496,129.91,129.82,100.0]
[1719238164988,6.1518,129.91,129.83,10.0]
[1719238165312,6.1518,129.91,129.84,100.0]
[1719238165513,6.1518,129.91,129.83,36.9573]
[1719238165514,0.8691485,129.92,129.86,100.0]
[1719238166001,0.8691485,129.92,129.85,10.0]
[1719238166311,0.8691485,129.92,129.87,17.6998]
[1719238166513,0.8691485,129.92,129.87,117.6998]
[1719238166710,0.8691485,129.92,129.89,100.0]
[1719238166900,0.8691485,129.92,129.89,107.6984]
[1719238167096,0.8691485,129.92,129.88,45.3157]
[1719238167301,0.8691485,129.92,129.88,10.0]
[1719238167906,0.8691485,129.92,129.87,100.0]
[1719238168110,0.8691485,129.92,129.86,10.0]
[1719238168337,0.8691485,129.92,129.89,100.0]
[1719238168495,0.8691485,129.92,129.88,10.0]
[1719238169001,0.8691485,129.92,129.86,10.0]
[1719238170090,0.8691485,129.92,129.88,10.0]
[1719238170406,0.8691485,129.92,129.87,207.6994]
[1719238170600,0.8691485,129.92,129.89,100.0]
[1719238170824,0.8691485,129.92,129.89,107.6987]
[1719238171108,0.8691485,129.92,129.91,107.6976]
[1719238171407,0.8691485,129.92,129.89,119.2467]
[1719238171646,0.8691485,129.92,129.89,100.0]
[1719238171820,0.8691485,129.92,129.87,7.6999]
[1719238172115,10.0,130.0,129.95,100.0]
[1719238172301,10.0,130.0,129.96,19.2361]
[1719238172500,10.0,130.0,129.95,17.6951]
[1719238172706,10.0,130.0,129.94,10.0]
[1719238173318,10.0,130.0,129.97,7.6938]
[1719238173526,10.0,130.0,129.96,26.9306]
[1719238173698,10.0,130.0,129.92,110.0]
[1719238174218,10.0,130.0,129.94,10.0]
[1719238174730,10.0,130.0,129.94,107.6956]
[1719238175023,10.0,130.0,129.94,100.0]
[1719238175192,10.0,130.0,129.96,100.0]
[1719238175391,10.0,130.0,129.92,110.0]
[1719238175812,10.0,130.0,129.92,117.697]
[1719238176017,10.0,130.0,129.95,10.0]
[1719238176390,0.17,129.99,129.93,10.0]
[1719238179409,7.6935,129.98,129.93,10.0]
[1719238179609,0.17,129.97,129.93,10.0]
[1719238179809,10.0,130.0,129.93,10.0]
[1719238180310,0.7696452,129.94,129.93,10.0]
[1719238181835,0.7696452,129.94,129.93,17.6964]
[1719238182706,0.7696452,129.94,129.93,10.0]
[1719238184396,10.0,130.0,129.97,100.0]
[1719238184625,10.0,130.0,129.99,10.0]
[1719238184827,10.0,130.0,129.95,136.9327]
[1719238185122,10.0,130.0,129.97,10.0]
[1719238185428,10.0,130.0,129.93,129.1375]
[1719238185628,10.0,130.0,129.93,129.1379]
[1719238185927,10.0,130.0,129.92,10.0]
[1719238186422,0.17,129.99,129.92,10.0]
[1719238186668,10.0,130.0,129.92,10.0]
[1719238187205,10.0,130.0,129.92,17.6969]
[1719238187816,0.17,129.99,129.94,10.0]
[1719238188021,7.863,129.99,129.92,10.0]
[1719238188409,7.6936,129.98,129.92,10.0]
[1719238188605,0.17,129.97,129.92,10.0]
[1719238188829,7.8631,129.99,129.92,10.0]
[1719238189036,0.17,129.99,129.92,10.0]
[1719238189199,0.17,129.99,129.92,110.0]
[1719238189399,10.0,130.0,129.94,110.0]
[1719238189601,10.0,130.0,129.94,210.0]
[1719238189832,10.0,130.0,129.96,10.0]
[1719238190120,10.0,130.0,129.96,17.6944]
[1719238190326,10.0,130.0,129.96,10.0]
[1719238191631,10.0,130.0,129.94,10.0]
[1719238191810,0.17,129.99,129.94,10.0]
[1719238192309,10.0,130.0,129.94,10.0]
[1719238193323,0.17,129.99,129.94,10.0]
[1719238196636,0.17,129.99,129.94,110.0]
[1719238197544,0.17,129.99,129.94,10.0]
[1719238197831,7.6953,129.95,129.91,10.0]
[1719238198021,45.17,129.99,129.91,10.0]
[1719238198406,7.6944,129.97,129.91,10.0]
[1719238198604,7.6947,129.96,129.91,10.0]
[1719238198841,0.17,129.95,129.88,10.0]
[1719238199136,14.1248,129.94,129.88,10.0]
[1719238199306,7.6967,129.93,129.85,100.0]
[1719238199623,0.17,129.93,129.85,119.2525]
[1719238199933,0.17,129.93,129.87,10.0]
[1719238200430,0.77000078,129.88,129.87,10.0]
[1719238200947,0.77000078,129.88,129.83,10.0]
[1719238201124,0.17,129.87,129.83,10.0]
[1719238201313,0.77000078,129.88,129.83,29.2556]
[1719238201518,0.77000078,129.88,129.86,7.7004]
[1719238201915,0.77000078,129.88,129.85,119.2523]
[1719238202120,0.77000078,129.88,129.83,110.0]
[1719238202319,0.17,129.87,129.83,10.0]
[1719238203932,0.77000078,129.88,129.83,29.2555]
[1719238204125,0.77000078,129.88,129.85,100.0]
[1719238204641,0.77000078,129.88,129.85,107.7009]
[1719238204826,0.77000078,129.88,129.85,126.9535]
[1719238205019,0.77000078,129.88,129.86,7.7003]
[1719238205220,0.77000078,129.88,129.85,110.0]
[1719238205614,0.77000078,129.88,129.85,117.701]
[1719238205817,0.77000078,129.88,129.85,10.0]
[1719238206643,0.77000078,129.88,129.83,10.0]
[1719238207114,0.17,129.87,129.83,10.0]
[1719238207313,0.77000078,129.88,129.83,10.0]
[1719238207527,0.17,129.87,129.83,10.0]
[1719238208132,21.404,129.87,129.78,110.0]
[1719238208435,21.404,129.87,129.78,129.263]
[1719238208646,21.404,129.87,129.81,17.7031]
[1719238208831,21.404,129.87,129.81,10.0]
[1719238209018,21.404,129.87,129.77,60.5252]
[1719238209019,21.404,129.87,129.79,10.0]
[1719238209337,7.7006,129.86,129.79,10.0]
[1719238209559,21.404,129.87,129.82,10.0]
[1719238209846,0.17,129.87,129.81,36.9619]
[1719238210033,0.17,129.87,129.81,29.2585]
[1719238210224,0.17,129.87,129.81,10.0]
[1719238210424,0.17,129.87,129.83,100.0]
[1719238210820,0.77000078,129.88,129.84,10.0]
[1719238211015,0.77000078,129.88,129.86,110.0]
[1719238211217,0.77000078,129.88,129.87,7.7]
[1719238211635,0.77000078,129.88,129.86,129.2512]
[1719238212151,0.77000078,129.88,129.86,110.0]
[1719238212338,0.77000078,129.88,129.86,10.0]
[1719238212930,0.77000078,129.88,129.84,110.0]
[1719238213339,0.77000078,129.88,129.84,117.7017]
[1719238213645,0.77000078,129.88,129.86,107.7004]
[1719238213942,0.77000078,129.88,129.87,17.7]
[1719238214120,0.77000078,129.88,129.87,62.7]
[1719238214941,0.77000078,129.88,129.87,162.7]
[1719238216336,0.77000078,129.88,129.87,62.7]
[1719238216917,0.77000078,129.88,129.87,10.0]
[1719238218423,0.77000078,129.88,129.85,10.0]
[1719238219154,0.77000078,129.88,129.86,126.9518]
[1719238219331,0.77000078,129.88,129.86,119.2513]
[1719238219524,0.77000078,129.88,129.85,117.7011]
[1719238220026,0.77000078,129.88,129.85,136.954]
[1719238220331,0.77000078,129.86,129.85,136.954]
[1719238220727,0.77000078,129.86,129.85,181.954]
[1719238221130,0.77000078,129.86,129.85,55.0]
[1719238221332,0.77000078,129.86,129.85,10.0]
[1719238222145,0.77000078,129.86,129.85,117.7011]
[1719238222665,0.77000078,129.86,129.85,10.0]
[1719238222956,0.77000078,129.86,129.85,110.0]
[1719238223427,0.77000078,129.86,129.85,10.0]
[1719238223633,0.77000078,129.86,129.85,117.7011]
[1719238224046,0.77000078,129.86,129.85,162.7011]
[1719238224247,0.77000078,129.86,129.85,117.7011]
[1719238224556,0.77000078,129.86,129.85,10.0]
[1719238225064,0.77000078,129.86,129.85,110.0]
[1719238225756,0.77000078,129.86,129.85,117.7011]
[1719238226257,0.77000078,129.86,129.85,162.7011]
[1719238226645,0.77000078,129.86,129.85,117.7011]
[1719238226950,0.77000078,129.86,129.85,162.7011]
[1719238228336,0.77000078,129.86,129.85,163.0411]
[1719238228840,0.77000078,129.86,129.85,162.8711]
[1719238229460,0.77000078,129.86,129.85,162.7011]
[1719238229753,6.26286627,129.99,129.9,100.0]
[1719238229953,6.0531,129.99,129.92,100.0]
[1719238230155,6.0531,129.99,129.94,10.0]
[1719238230335,6.0531,129.99,129.92,119.242]
[1719238230336,6.0531,129.99,129.92,36.9388]
[1719238230535,6.0531,129.99,129.92,10.0]
[1719238230736,13.7463,129.99,129.92,10.0]
[1719238231162,6.0531,129.99,129.92,10.0]
[1719238231634,0.17,129.98,129.92,10.0]
[1719238231841,7.8635,129.98,129.9,10.0]
[1719238232142,0.17,129.98,129.9,136.943]
[1719238232338,0.17,129.98,129.9,10.0]
[1719238232863,7.6952,129.95,129.88,10.0]
[1719238233167,21.5412,129.94,129.86,10.0]
[1719238234156,21.3712,129.94,129.88,7.6992]
[1719238234464,6.0185,129.94,129.9,109.19]
[1719238234644,6.2832,129.97,129.92,9.19]
[1719238234973,6.2832,129.97,129.94,9.19]
[1719238235266,6.2832,129.97,129.92,100.0]
[1719238235267,6.2832,129.97,129.92,116.8868]
[1719238235743,16.1309,129.98,129.94,107.6956]
[1719238235937,16.1309,129.98,129.94,100.0]
[1719238236139,10.0,130.0,129.95,9.19]
[1719238236646,10.0,130.0,129.94,100.0]
[1719238237671,10.0,130.0,129.92,9.19]
[1719238237857,10.0,130.0,129.93,100.0]
[1719238238056,10.0,130.0,129.94,9.19]
[1719238238246,0.17,129.99,129.94,9.19]
[1719238240347,0.76958597,129.95,129.94,9.19]
[1719238240767,0.76958597,129.95,129.91,100.0]
[1719238240967,0.93958597,129.95,129.9,36.1324]
[1719238241270,0.93958597,129.95,129.9,9.19]
[1719238241469,0.93958597,129.95,129.87,119.2492]
[1719238241470,6.3544,129.93,129.87,9.19]
[1719238241976,0.17,129.92,129.87,9.19]
[1719238242265,30.04,129.9,129.87,9.19]
[1719238242444,0.17,129.92,129.87,9.19]
[1719238242644,30.21,129.92,129.87,9.19]
[1719238246384,30.21,129.92,129.85,9.19]
[1719238246562,45.0,129.91,129.85,9.19]
[1719238246757,0.17,129.9,129.85,9.19]
[1719238247487,0.17,129.91,129.85,9.19]
[1719238247864,6.005,129.97,129.86,100.0]
[1719238248064,0.76958597,129.95,129.87,6.6025]
[1719238248277,0.76958597,129.95,129.9,100.0]
[1719238248678,0.76958597,129.95,129.87,9.19]
[1719238248885,8.46478597,129.95,129.87,9.19]
[1719238249079,0.76958597,129.95,129.89,9.19]
[1719238249773,0.76958597,129.95,129.87,9.19]
[1719238249774,0.17,129.94,129.87,9.19]
[1719238250878,30.04,129.88,129.85,9.19]
[1719238251179,30.04,129.88,129.8,9.19]
[1719238251386,0.17,129.87,129.82,9.19]
[1719238251690,0.17,129.87,129.8,109.19]
[1719238251982,30.04,129.88,129.82,9.19]
[1719238252190,30.04,129.9,129.82,9.19]
[1719238252479,30.04,129.9,129.86,100.0]
[1719238252666,21.8608,129.93,129.86,100.0]
[1719238252867,30.04,129.92,129.89,9.19]
[1719238253070,30.04,129.92,129.86,109.19]
[1719238253862,30.04,129.92,129.88,100.0]
[1719238254073,0.76958597,129.95,129.86,109.19]
[1719238254562,0.76958597,129.95,129.9,9.19]
[1719238255782,0.17,129.94,129.9,9.19]
[1719238256100,0.76958597,129.95,129.9,9.19]
[1719238256264,0.76958597,129.95,129.89,100.0]
[1719238256265,0.76958597,129.95,129.92,9.19]
[1719238258085,0.17,129.94,129.9,9.19]
[1719238258286,30.21,129.94,129.88,9.19]
[1719238258466,45.0,129.93,129.88,9.19]
[1719238259265,45.0,129.93,129.9,9.19]
[1719238259786,45.0,129.93,129.88,109.19]